[Event "Titled Tuesday Blitz January 11 2022"]
[White "Alavkin, Arseny"]
[Black "Terry, Renato"]
[WhiteFideId "4120612"]
[BlackFideId "3803457"]
[WhiteElo "2391"]
[BlackElo "2577"]
[Result "0-1"]
[Round "11"]
[TimeControl "180+1"]
[Date "2022.01.11"]
[WhiteClock "0:00:14"]
[BlackClock "0:00:12"]

1. d4 {[%clk 0:03:00]}  e6 {[%clk 0:02:59]} 2. c4 {[%clk 0:03:00]}  Bb4+ {[%clk 0:02:58]} 3. Nc3 {[%clk 0:03:00]}  c5 {[%clk 0:02:58]} 4. d5 {[%clk 0:02:55]}  Bxc3+ {[%clk 0:02:59]} 5. bxc3 {[%clk 0:02:56]}  Qa5 {[%clk 0:03:00]} 6. e4 {[%clk 0:02:52]}  Nf6 {[%clk 0:02:59]} 7. f3 {[%clk 0:02:49]}  d6 {[%clk 0:02:59]} 8. Bd3 {[%clk 0:02:49]}  Nbd7 {[%clk 0:02:59]} 9. Ne2 {[%clk 0:02:49]}  Ne5 {[%clk 0:02:51]} 10. Bf4 {[%clk 0:02:49]}  O-O {[%clk 0:02:44]} 11. Bxe5 {[%clk 0:02:49]}  dxe5 {[%clk 0:02:44]} 12. O-O {[%clk 0:02:50]}  Bd7 {[%clk 0:02:20]} 13. Qc2 {[%clk 0:02:49]}  Qc7 {[%clk 0:02:15]} 14. Qd2 {[%clk 0:02:47]}  Ne8 {[%clk 0:02:07]} 15. Rab1 {[%clk 0:02:46]}  b6 {[%clk 0:02:07]} 16. Qg5 {[%clk 0:02:44]}  f6 {[%clk 0:02:06]} 17. Qg3 {[%clk 0:02:44]}  Nd6 {[%clk 0:02:05]} 18. Kh1 {[%clk 0:02:45]}  Rae8 {[%clk 0:02:04]} 19. Nc1 {[%clk 0:02:29]}  exd5 {[%clk 0:01:53]} 20. exd5 {[%clk 0:02:16]}  Qc8 {[%clk 0:01:47]} 21. Re1 {[%clk 0:02:06]}  Bf5 {[%clk 0:01:45]} 22. Qh4 {[%clk 0:01:53]}  Qa6 {[%clk 0:01:37]} 23. Bxf5 {[%clk 0:01:31]}  Nxf5 {[%clk 0:01:38]} 24. Qg4 {[%clk 0:01:30]}  Nd6 {[%clk 0:01:38]} 25. Rb2 {[%clk 0:01:30]}  Rf7 {[%clk 0:01:20]} 26. Rbe2 {[%clk 0:01:24]}  Qxc4 {[%clk 0:01:14]} 27. Qxc4 {[%clk 0:01:19]}  Nxc4 {[%clk 0:01:14]} 28. Re4 {[%clk 0:01:18]}  Nd6 {[%clk 0:01:11]} 29. Ra4 {[%clk 0:01:18]}  c4 {[%clk 0:01:09]} 30. Ne2 {[%clk 0:01:14]}  Rc7 {[%clk 0:00:58]} 31. Ng3 {[%clk 0:01:13]}  f5 {[%clk 0:00:59]} 32. Nf1 {[%clk 0:01:09]}  Ree7 {[%clk 0:00:41]} 33. g3 {[%clk 0:00:58]}  Kf7 {[%clk 0:00:40]} 34. Ne3 {[%clk 0:00:45]}  Rc5 {[%clk 0:00:37]} 35. Rd1 {[%clk 0:00:33]}  h5 {[%clk 0:00:36]} 36. Kg1 {[%clk 0:00:19]}  g5 {[%clk 0:00:36]} 37. Kf2 {[%clk 0:00:18]}  f4 {[%clk 0:00:35]} 38. gxf4 {[%clk 0:00:19]}  gxf4 {[%clk 0:00:32]} 39. Nc2 {[%clk 0:00:18]}  a5 {[%clk 0:00:30]} 40. Na3 {[%clk 0:00:17]}  Ra7 {[%clk 0:00:28]} 41. Nc2 {[%clk 0:00:12]}  Nb5 {[%clk 0:00:29]} 42. d6 {[%clk 0:00:12]}  Ke6 {[%clk 0:00:28]} 43. Re1 {[%clk 0:00:06]}  Kxd6 {[%clk 0:00:20]} 44. Rg1 {[%clk 0:00:06]}  Nxc3 {[%clk 0:00:13]} 45. Ra3 {[%clk 0:00:06]}  Nb5 {[%clk 0:00:13]} 46. Ra4 {[%clk 0:00:07]}  Rd7 {[%clk 0:00:13]} 47. Na3 {[%clk 0:00:05]}  Nxa3 {[%clk 0:00:11]} 48. Rxa3 {[%clk 0:00:06]}  Kc7 {[%clk 0:00:11]} 49. Rc3 {[%clk 0:00:06]}  b5 {[%clk 0:00:12]} 50. Ke2 {[%clk 0:00:07]}  b4 {[%clk 0:00:12]} 51. Rc2 {[%clk 0:00:07]}  c3 {[%clk 0:00:12]} 52. Rg5 {[%clk 0:00:08]}  Rcd5 {[%clk 0:00:09]} 53. Rxh5 {[%clk 0:00:08]}  Rd2+ {[%clk 0:00:09]} 54. Rxd2 {[%clk 0:00:09]}  Rxd2+ {[%clk 0:00:10]} 55. Ke1 {[%clk 0:00:09]}  Rxa2 {[%clk 0:00:10]} 56. Kd1 {[%clk 0:00:10]}  b3 {[%clk 0:00:09]} 57. Rh7+ {[%clk 0:00:10]}  Kb6 {[%clk 0:00:09]} 58. Rh8 {[%clk 0:00:11]}  Ra1+ {[%clk 0:00:10]} 59. Ke2 {[%clk 0:00:11]}  b2 {[%clk 0:00:10]} 60. Rb8+ {[%clk 0:00:11]}  Kc7 {[%clk 0:00:10]} 61. Rxb2 {[%clk 0:00:11]}  cxb2 {[%clk 0:00:11]} 62. Kd3 {[%clk 0:00:12]}  b1=Q+ {[%clk 0:00:11]} 63. Kc4 {[%clk 0:00:13]}  Qb4+ {[%clk 0:00:11]} 64. Kd5 {[%clk 0:00:14]}  Qd6+ {[%clk 0:00:12]} 65. Ke4 {[%clk 0:00:13]}  Qg6+ {[%clk 0:00:12]} 66. Kxe5 {[%clk 0:00:13]}  Re1+ {[%clk 0:00:12]} 67. Kxf4 {[%clk 0:00:14]}  Qf6+ {[%clk 0:00:12]} 68. Kg3 {[%clk 0:00:14]}  Re2 {[%clk 0:00:12]} 69. h4 {[%clk 0:00:13]}  Qe5+ {[%clk 0:00:12]} 70. Kg4 {[%clk 0:00:13]}  Rg2+ {[%clk 0:00:12]} 71. Kh3 {[%clk 0:00:14]}  Qh2# {[%clk 0:00:12]} 0-1


[Site "https://www.chess.com"]

[Event "Titled Tuesday Blitz January 11 2022"]
[White "Boyer, Mahel"]
[Black "Deac, Bogdan-Daniel"]
[WhiteFideId "45102422"]
[BlackFideId "1226380"]
[WhiteElo "2328"]
[BlackElo "2646"]
[Result "1/2-1/2"]
[Round "11"]
[TimeControl "180+1"]
[Date "2022.01.11"]
[WhiteClock "0:00:03"]
[BlackClock "0:00:11"]

1. e4 {[%clk 0:03:00]}  e5 {[%clk 0:02:57]} 2. Nf3 {[%clk 0:03:01]}  Nc6 {[%clk 0:02:57]} 3. Bc4 {[%clk 0:02:59]}  Bc5 {[%clk 0:02:54]} 4. c3 {[%clk 0:02:59]}  Nf6 {[%clk 0:02:53]} 5. d3 {[%clk 0:02:59]}  d6 {[%clk 0:02:54]} 6. Bb3 {[%clk 0:02:57]}  a5 {[%clk 0:02:50]} 7. h3 {[%clk 0:02:55]}  O-O {[%clk 0:02:49]} 8. Bg5 {[%clk 0:02:54]}  h6 {[%clk 0:02:49]} 9. Bh4 {[%clk 0:02:54]}  g5 {[%clk 0:02:49]} 10. Nxg5 {[%clk 0:02:52]}  hxg5 {[%clk 0:02:50]} 11. Bxg5 {[%clk 0:02:53]}  Kg7 {[%clk 0:02:35]} 12. Qf3 {[%clk 0:02:52]}  Be6 {[%clk 0:02:29]} 13. Nd2 {[%clk 0:02:50]}  Rh8 {[%clk 0:01:51]} 14. Nf1 {[%clk 0:02:47]}  Rh6 {[%clk 0:01:50]} 15. Ng3 {[%clk 0:02:34]}  Qh8 {[%clk 0:01:39]} 16. h4 {[%clk 0:01:28]}  Ng8 {[%clk 0:01:04]} 17. Nf5+ {[%clk 0:01:23]}  Bxf5 {[%clk 0:01:04]} 18. Qxf5 {[%clk 0:01:24]}  Rf8 {[%clk 0:00:56]} 19. Rh3 {[%clk 0:01:18]}  Rg6 {[%clk 0:00:31]} 20. h5 {[%clk 0:01:07]}  Nge7 {[%clk 0:00:18]} 21. Qg4 {[%clk 0:00:32]}  Rxg5 {[%clk 0:00:16]} 22. Qxg5+ {[%clk 0:00:33]}  Kh7 {[%clk 0:00:16]} 23. Rf3 {[%clk 0:00:05]}  f6 {[%clk 0:00:14]} 24. Qg4 {[%clk 0:00:04]}  Qg7 {[%clk 0:00:12]} 25. Qe6 {[%clk 0:00:04]}  Qg5 {[%clk 0:00:10]} 26. Ke2 {[%clk 0:00:03]}  Qxg2 {[%clk 0:00:05]} 27. h6 {[%clk 0:00:02]}  a4 {[%clk 0:00:05]} 28. Bxa4 {[%clk 0:00:02]}  f5 {[%clk 0:00:05]} 29. Bxc6 {[%clk 0:00:02]}  Nxc6 {[%clk 0:00:04]} 30. Qd7+ {[%clk 0:00:02]}  Kxh6 {[%clk 0:00:02]} 31. exf5 {[%clk 0:00:01]}  e4 {[%clk 0:00:02]} 32. Qe6+ {[%clk 0:00:02]}  Kh7 {[%clk 0:00:02]} 33. Qxe4 {[%clk 0:00:02]}  Ne5 {[%clk 0:00:02]} 34. Rf4 {[%clk 0:00:02]}  Qxe4+ {[%clk 0:00:02]} 35. dxe4 {[%clk 0:00:03]}  Kg7 {[%clk 0:00:01]} 36. Rh1 {[%clk 0:00:02]}  Kf6 {[%clk 0:00:01]} 37. Rfh4 {[%clk 0:00:03]}  Kg5 {[%clk 0:00:01]} 38. Rh5+ {[%clk 0:00:03]}  Kf6 {[%clk 0:00:02]} 39. Rh6+ {[%clk 0:00:03]}  Kf7 {[%clk 0:00:03]} 40. Rh7+ {[%clk 0:00:03]}  Ke8 {[%clk 0:00:04]} 41. R1h6 {[%clk 0:00:04]}  Kd8 {[%clk 0:00:04]} 42. Re6 {[%clk 0:00:04]}  Nd7 {[%clk 0:00:04]} 43. Ree7 {[%clk 0:00:05]}  Nf6 {[%clk 0:00:04]} 44. Rhf7 {[%clk 0:00:04]}  Rxf7 {[%clk 0:00:04]} 45. Rxf7 {[%clk 0:00:05]}  Nxe4 {[%clk 0:00:05]} 46. f4 {[%clk 0:00:05]}  c6 {[%clk 0:00:04]} 47. Rxb7 {[%clk 0:00:05]}  Ng3+ {[%clk 0:00:04]} 48. Kf3 {[%clk 0:00:05]}  Nxf5 {[%clk 0:00:05]} 49. b4 {[%clk 0:00:06]}  Kc8 {[%clk 0:00:05]} 50. Rf7 {[%clk 0:00:06]}  Nh4+ {[%clk 0:00:05]} 51. Kg4 {[%clk 0:00:06]}  Bf2 {[%clk 0:00:05]} 52. Rh7 {[%clk 0:00:06]}  Ng2 {[%clk 0:00:05]} 53. Kf3 {[%clk 0:00:06]}  Nxf4 {[%clk 0:00:05]} 54. Kxf4 {[%clk 0:00:06]}  Be1 {[%clk 0:00:05]} 55. Rh3 {[%clk 0:00:07]}  d5 {[%clk 0:00:05]} 56. Ke5 {[%clk 0:00:07]}  Kc7 {[%clk 0:00:06]} 57. a4 {[%clk 0:00:08]}  Kb6 {[%clk 0:00:06]} 58. Kd6 {[%clk 0:00:08]}  d4 {[%clk 0:00:07]} 59. cxd4 {[%clk 0:00:08]}  Bxb4+ {[%clk 0:00:07]} 60. Kd7 {[%clk 0:00:08]}  c5 {[%clk 0:00:07]} 61. Rh6+ {[%clk 0:00:08]}  Ka5 {[%clk 0:00:07]} 62. d5 {[%clk 0:00:09]}  c4 {[%clk 0:00:07]} 63. Rc6 {[%clk 0:00:09]}  c3 {[%clk 0:00:08]} 64. d6 {[%clk 0:00:10]}  Kxa4 {[%clk 0:00:08]} 65. Ke6 {[%clk 0:00:10]}  Bxd6 {[%clk 0:00:08]} 66. Kxd6 {[%clk 0:00:08]}  Kb3 {[%clk 0:00:09]} 67. Kd5 {[%clk 0:00:08]}  c2 {[%clk 0:00:09]} 68. Kd4 {[%clk 0:00:09]}  Kb2 {[%clk 0:00:10]} 69. Rb6+ {[%clk 0:00:09]}  Ka1 {[%clk 0:00:10]} 70. Rc6 {[%clk 0:00:08]}  Kb1 {[%clk 0:00:10]} 71. Rb6+ {[%clk 0:00:08]}  Ka1 {[%clk 0:00:10]} 72. Ra6+ {[%clk 0:00:04]}  Kb1 {[%clk 0:00:10]} 73. Rb6+ {[%clk 0:00:03]}  Ka1 {[%clk 0:00:11]} 1/2-1/2


[Site "https://www.chess.com"]

[Event "Titled Tuesday Blitz January 11 2022"]
[White "Costachi, Mihnea"]
[Black "Kosteniuk, Alexandra"]
[WhiteFideId "1217518"]
[BlackFideId "4128125"]
[WhiteElo "2464"]
[BlackElo "2469"]
[Result "1-0"]
[Round "11"]
[TimeControl "180+1"]
[Date "2022.01.11"]
[WhiteClock "0:00:15"]
[BlackClock "0:00:02"]

1. e4 {[%clk 0:03:00]}  c6 {[%clk 0:03:00]} 2. c4 {[%clk 0:02:59]}  d5 {[%clk 0:02:59]} 3. cxd5 {[%clk 0:03:00]}  cxd5 {[%clk 0:03:00]} 4. exd5 {[%clk 0:03:01]}  Nf6 {[%clk 0:03:00]} 5. Nc3 {[%clk 0:03:01]}  Nxd5 {[%clk 0:03:01]} 6. d4 {[%clk 0:03:02]}  Nc6 {[%clk 0:02:59]} 7. Nf3 {[%clk 0:03:02]}  e6 {[%clk 0:02:48]} 8. Bd3 {[%clk 0:02:59]}  Be7 {[%clk 0:02:47]} 9. O-O {[%clk 0:02:59]}  O-O {[%clk 0:02:47]} 10. Ne4 {[%clk 0:02:51]}  b6 {[%clk 0:02:39]} 11. Bg5 {[%clk 0:02:51]}  Ncb4 {[%clk 0:02:31]} 12. Be2 {[%clk 0:02:41]}  h6 {[%clk 0:02:26]} 13. Bxe7 {[%clk 0:02:40]}  Nxe7 {[%clk 0:02:25]} 14. a3 {[%clk 0:02:36]}  Nbd5 {[%clk 0:02:24]} 15. Rc1 {[%clk 0:02:36]}  Bb7 {[%clk 0:02:23]} 16. Bd3 {[%clk 0:02:35]}  Nf4 {[%clk 0:02:19]} 17. Bb1 {[%clk 0:02:32]}  Nf5 {[%clk 0:02:18]} 18. Qd2 {[%clk 0:02:29]}  Ng6 {[%clk 0:02:15]} 19. Rfd1 {[%clk 0:02:23]}  Rc8 {[%clk 0:02:12]} 20. Rxc8 {[%clk 0:02:22]}  Qxc8 {[%clk 0:02:13]} 21. Ne5 {[%clk 0:02:18]}  Rd8 {[%clk 0:02:09]} 22. Nxg6 {[%clk 0:02:13]}  fxg6 {[%clk 0:02:09]} 23. Qc3 {[%clk 0:01:45]}  Qa8 {[%clk 0:02:07]} 24. f3 {[%clk 0:01:38]}  Rc8 {[%clk 0:01:56]} 25. Qe1 {[%clk 0:01:30]}  Bd5 {[%clk 0:01:50]} 26. Nc3 {[%clk 0:01:30]}  Bb3 {[%clk 0:01:50]} 27. Rd2 {[%clk 0:01:25]}  Rd8 {[%clk 0:01:48]} 28. Qe5 {[%clk 0:01:24]}  Qb8 {[%clk 0:01:44]} 29. Qe4 {[%clk 0:01:11]}  Qd6 {[%clk 0:01:38]} 30. Ne2 {[%clk 0:01:11]}  Rc8 {[%clk 0:01:34]} 31. Qe5 {[%clk 0:01:06]}  Qd5 {[%clk 0:01:17]} 32. Be4 {[%clk 0:01:01]}  Qa5 {[%clk 0:00:41]} 33. Nc3 {[%clk 0:00:55]}  Qxe5 {[%clk 0:00:24]} 34. dxe5 {[%clk 0:00:55]}  Rc7 {[%clk 0:00:25]} 35. Kf2 {[%clk 0:00:46]}  Kf7 {[%clk 0:00:23]} 36. Nb5 {[%clk 0:00:45]}  Rc5 {[%clk 0:00:22]} 37. Bxf5 {[%clk 0:00:42]}  exf5 {[%clk 0:00:19]} 38. Nd4 {[%clk 0:00:31]}  Be6 {[%clk 0:00:19]} 39. f4 {[%clk 0:00:30]}  Rc4 {[%clk 0:00:18]} 40. g3 {[%clk 0:00:28]}  Bd5 {[%clk 0:00:16]} 41. Nxf5 {[%clk 0:00:26]}  gxf5 {[%clk 0:00:16]} 42. Rxd5 {[%clk 0:00:27]}  Rc2+ {[%clk 0:00:16]} 43. Ke3 {[%clk 0:00:27]}  Rxb2 {[%clk 0:00:12]} 44. Rd7+ {[%clk 0:00:27]}  Ke6 {[%clk 0:00:11]} 45. Rxa7 {[%clk 0:00:27]}  Rxh2 {[%clk 0:00:09]} 46. Rxg7 {[%clk 0:00:27]}  Ra2 {[%clk 0:00:08]} 47. Rg6+ {[%clk 0:00:28]}  Kd5 {[%clk 0:00:08]} 48. Rd6+ {[%clk 0:00:24]}  Kc5 {[%clk 0:00:08]} 49. Rd3 {[%clk 0:00:24]}  Ra1 {[%clk 0:00:07]} 50. Ke2 {[%clk 0:00:22]}  Ra2+ {[%clk 0:00:06]} 51. Kf3 {[%clk 0:00:23]}  Ra1 {[%clk 0:00:05]} 52. Re3 {[%clk 0:00:19]}  Rd1 {[%clk 0:00:05]} 53. e6 {[%clk 0:00:19]}  Rd8 {[%clk 0:00:06]} 54. e7 {[%clk 0:00:19]}  Re8 {[%clk 0:00:06]} 55. Re6 {[%clk 0:00:19]}  b5 {[%clk 0:00:06]} 56. g4 {[%clk 0:00:16]}  Kd5 {[%clk 0:00:01]} 57. gxf5 {[%clk 0:00:16]}  h5 {[%clk 0:00:02]} 58. Kg3 {[%clk 0:00:15]} 1-0


[Site "https://www.chess.com"]

[Event "Titled Tuesday Blitz January 11 2022"]
[White "Ezat, Mohamed"]
[Black "Dastan, Muhammed Batuhan"]
[WhiteFideId "10600906"]
[BlackFideId "6300014"]
[WhiteElo "2386"]
[BlackElo "2410"]
[Result "0-1"]
[Round "11"]
[TimeControl "180+1"]
[Date "2022.01.11"]
[WhiteClock "0:00:24"]
[BlackClock "0:00:08"]

1. d4 {[%clk 0:02:24]}  d5 {[%clk 0:02:58]} 2. c4 {[%clk 0:02:17]}  c6 {[%clk 0:02:58]} 3. Nc3 {[%clk 0:02:17]}  Nf6 {[%clk 0:02:58]} 4. cxd5 {[%clk 0:02:18]}  cxd5 {[%clk 0:02:58]} 5. Bf4 {[%clk 0:02:17]}  Nc6 {[%clk 0:02:58]} 6. e3 {[%clk 0:02:17]}  Bf5 {[%clk 0:02:58]} 7. Qb3 {[%clk 0:02:12]}  Na5 {[%clk 0:02:58]} 8. Qa4+ {[%clk 0:02:12]}  Bd7 {[%clk 0:02:58]} 9. Qc2 {[%clk 0:02:13]}  Rc8 {[%clk 0:02:57]} 10. Bd3 {[%clk 0:02:13]}  e6 {[%clk 0:02:58]} 11. Nf3 {[%clk 0:02:13]}  Bb4 {[%clk 0:02:58]} 12. O-O {[%clk 0:02:12]}  O-O {[%clk 0:02:58]} 13. Qe2 {[%clk 0:02:11]}  Bxc3 {[%clk 0:02:48]} 14. bxc3 {[%clk 0:02:10]}  Rxc3 {[%clk 0:02:48]} 15. Rac1 {[%clk 0:02:11]}  Rxc1 {[%clk 0:02:42]} 16. Rxc1 {[%clk 0:02:10]}  Nc6 {[%clk 0:02:36]} 17. Bg5 {[%clk 0:02:06]}  h6 {[%clk 0:02:33]} 18. Bh4 {[%clk 0:02:06]}  Qe7 {[%clk 0:02:16]} 19. Ne5 {[%clk 0:02:01]}  g5 {[%clk 0:01:41]} 20. Bg3 {[%clk 0:01:58]}  Kg7 {[%clk 0:01:41]} 21. h4 {[%clk 0:01:58]}  Rc8 {[%clk 0:01:31]} 22. hxg5 {[%clk 0:01:57]}  hxg5 {[%clk 0:01:31]} 23. Nxc6 {[%clk 0:01:56]}  Rxc6 {[%clk 0:01:29]} 24. Rb1 {[%clk 0:01:43]}  b6 {[%clk 0:01:26]} 25. Be5 {[%clk 0:01:43]}  Kf8 {[%clk 0:01:22]} 26. Qf3 {[%clk 0:01:42]}  Ng8 {[%clk 0:01:10]} 27. Bh7 {[%clk 0:01:36]}  f6 {[%clk 0:00:42]} 28. Bxg8 {[%clk 0:01:35]}  Kxg8 {[%clk 0:00:43]} 29. Bxf6 {[%clk 0:01:34]}  Qh7 {[%clk 0:00:43]} 30. Rf1 {[%clk 0:01:26]}  Qg6 {[%clk 0:00:35]} 31. Be5 {[%clk 0:01:23]}  Rc8 {[%clk 0:00:35]} 32. Qg3 {[%clk 0:01:21]}  Bb5 {[%clk 0:00:32]} 33. Re1 {[%clk 0:01:18]}  Bd3 {[%clk 0:00:32]} 34. f3 {[%clk 0:01:18]}  Kf7 {[%clk 0:00:32]} 35. e4 {[%clk 0:01:17]}  dxe4 {[%clk 0:00:31]} 36. fxe4 {[%clk 0:01:16]}  Bxe4 {[%clk 0:00:32]} 37. Rf1+ {[%clk 0:01:14]}  Bf5 {[%clk 0:00:32]} 38. Qa3 {[%clk 0:01:13]}  Kg8 {[%clk 0:00:26]} 39. Qxa7 {[%clk 0:01:12]}  b5 {[%clk 0:00:24]} 40. Qd7 {[%clk 0:01:04]}  Rf8 {[%clk 0:00:23]} 41. Qe7 {[%clk 0:01:01]}  g4 {[%clk 0:00:22]} 42. Rc1 {[%clk 0:00:55]}  Bd3 {[%clk 0:00:15]} 43. Qh4 {[%clk 0:00:53]}  Bc4 {[%clk 0:00:09]} 44. Rc3 {[%clk 0:00:47]}  Rf1+ {[%clk 0:00:09]} 45. Kh2 {[%clk 0:00:46]}  Qb1 {[%clk 0:00:09]} 46. Qh8+ {[%clk 0:00:41]}  Kf7 {[%clk 0:00:09]} 47. Qg7+ {[%clk 0:00:37]}  Ke8 {[%clk 0:00:09]} 48. Re3 {[%clk 0:00:34]}  Rh1+ {[%clk 0:00:09]} 49. Kg3 {[%clk 0:00:34]}  Qf5 {[%clk 0:00:10]} 50. Bf4 {[%clk 0:00:33]}  Rf1 {[%clk 0:00:08]} 51. Qh6 {[%clk 0:00:31]}  Kd7 {[%clk 0:00:07]} 52. d5 {[%clk 0:00:31]}  Bxd5 {[%clk 0:00:07]} 53. Rc3 {[%clk 0:00:31]}  Bc4 {[%clk 0:00:08]} 54. Ra3 {[%clk 0:00:30]}  Rd1 {[%clk 0:00:06]} 55. Ra7+ {[%clk 0:00:30]}  Kc6 {[%clk 0:00:06]} 56. Rf7 {[%clk 0:00:18]}  Qd3+ {[%clk 0:00:06]} 57. Kh4 {[%clk 0:00:18]}  Rh1+ {[%clk 0:00:06]} 58. Kg5 {[%clk 0:00:18]}  Rxh6 {[%clk 0:00:07]} 59. Kxh6 {[%clk 0:00:18]}  Qe2 {[%clk 0:00:07]} 60. g3 {[%clk 0:00:16]}  Qxa2 {[%clk 0:00:07]} 61. Kg5 {[%clk 0:00:17]}  Qc2 {[%clk 0:00:07]} 62. Rc7+ {[%clk 0:00:18]}  Kd5 {[%clk 0:00:07]} 63. Kxg4 {[%clk 0:00:18]}  Qf5+ {[%clk 0:00:07]} 64. Kh4 {[%clk 0:00:18]}  Qb1 {[%clk 0:00:06]} 65. Rd7+ {[%clk 0:00:18]}  Kc5 {[%clk 0:00:06]} 66. Rd2 {[%clk 0:00:19]}  Qh1+ {[%clk 0:00:05]} 67. Kg5 {[%clk 0:00:20]}  b4 {[%clk 0:00:06]} 68. Rf2 {[%clk 0:00:20]}  Bd3 {[%clk 0:00:06]} 69. Be3+ {[%clk 0:00:21]}  Kb5 {[%clk 0:00:06]} 70. Rf7 {[%clk 0:00:20]}  e5 {[%clk 0:00:05]} 71. Rb7+ {[%clk 0:00:21]}  Qxb7 {[%clk 0:00:05]} 72. Kf6 {[%clk 0:00:20]}  b3 {[%clk 0:00:05]} 73. Kxe5 {[%clk 0:00:21]}  Kc4 {[%clk 0:00:05]} 74. Kf4 {[%clk 0:00:21]}  Qb5 {[%clk 0:00:06]} 75. Bf2 {[%clk 0:00:21]}  b2 {[%clk 0:00:07]} 76. g4 {[%clk 0:00:22]}  b1=Q {[%clk 0:00:07]} 77. Kg3 {[%clk 0:00:23]}  Qc2 {[%clk 0:00:08]} 78. g5 {[%clk 0:00:24]}  Qxg5+ {[%clk 0:00:08]} 79. Kf3 {[%clk 0:00:24]}  Be4# {[%clk 0:00:08]} 0-1


[Site "https://www.chess.com"]

[Event "Titled Tuesday Blitz January 11 2022"]
[White "FGHSMN"]
[Black "Real De Azua, Ernesto"]
[BlackFideId "108154"]
[WhiteElo "2760"]
[BlackElo "2476"]
[Result "1/2-1/2"]
[Round "11"]
[TimeControl "180+1"]
[Date "2022.01.11"]
[WhiteClock "0:01:00"]
[BlackClock "0:00:03"]

1. b3 {[%clk 0:02:59]}  d5 {[%clk 0:02:55]} 2. Bb2 {[%clk 0:02:57]}  Nf6 {[%clk 0:02:56]} 3. Nf3 {[%clk 0:02:57]}  Bf5 {[%clk 0:02:54]} 4. c4 {[%clk 0:02:56]}  e6 {[%clk 0:02:54]} 5. e3 {[%clk 0:02:52]}  h6 {[%clk 0:02:52]} 6. d4 {[%clk 0:02:51]}  c6 {[%clk 0:02:43]} 7. Nc3 {[%clk 0:02:51]}  Nbd7 {[%clk 0:02:43]} 8. Bd3 {[%clk 0:02:49]}  Bxd3 {[%clk 0:02:41]} 9. Qxd3 {[%clk 0:02:50]}  Bb4 {[%clk 0:02:41]} 10. O-O {[%clk 0:02:50]}  O-O {[%clk 0:02:40]} 11. Ne2 {[%clk 0:02:50]}  Ne4 {[%clk 0:02:36]} 12. Ng3 {[%clk 0:02:50]}  f5 {[%clk 0:02:36]} 13. Ne5 {[%clk 0:02:46]}  Nxe5 {[%clk 0:02:31]} 14. dxe5 {[%clk 0:02:47]}  Qe7 {[%clk 0:02:20]} 15. a3 {[%clk 0:02:45]}  Ba5 {[%clk 0:02:20]} 16. b4 {[%clk 0:02:44]}  Bc7 {[%clk 0:02:19]} 17. c5 {[%clk 0:02:40]}  Nxg3 {[%clk 0:02:12]} 18. hxg3 {[%clk 0:02:40]}  Rfc8 {[%clk 0:01:54]} 19. Bd4 {[%clk 0:02:39]}  b5 {[%clk 0:01:25]} 20. a4 {[%clk 0:02:34]}  a6 {[%clk 0:01:25]} 21. axb5 {[%clk 0:02:34]}  axb5 {[%clk 0:01:25]} 22. Rxa8 {[%clk 0:02:29]}  Rxa8 {[%clk 0:01:25]} 23. Ra1 {[%clk 0:02:30]}  Rxa1+ {[%clk 0:01:24]} 24. Bxa1 {[%clk 0:02:31]}  Qe8 {[%clk 0:01:20]} 25. Qa3 {[%clk 0:02:31]}  Qc8 {[%clk 0:01:14]} 26. Qa7 {[%clk 0:02:28]}  Kf8 {[%clk 0:01:11]} 27. Bd4 {[%clk 0:02:26]}  h5 {[%clk 0:01:10]} 28. Kh2 {[%clk 0:02:26]}  Ke8 {[%clk 0:01:08]} 29. f3 {[%clk 0:02:26]}  Kd7 {[%clk 0:01:07]} 30. Qa2 {[%clk 0:02:16]}  g6 {[%clk 0:01:07]} 31. e4 {[%clk 0:02:15]}  fxe4 {[%clk 0:00:52]} 32. fxe4 {[%clk 0:02:16]}  dxe4 {[%clk 0:00:44]} 33. Qf2 {[%clk 0:02:14]}  Qe8 {[%clk 0:00:40]} 34. Qf6 {[%clk 0:02:13]}  Bd8 {[%clk 0:00:36]} 35. Qf4 {[%clk 0:02:13]}  g5 {[%clk 0:00:31]} 36. Qxe4 {[%clk 0:02:12]}  Qf7 {[%clk 0:00:32]} 37. Be3 {[%clk 0:02:10]}  Be7 {[%clk 0:00:28]} 38. g4 {[%clk 0:02:01]}  hxg4 {[%clk 0:00:27]} 39. Qxg4 {[%clk 0:02:00]}  Qh7+ {[%clk 0:00:26]} 40. Kg3 {[%clk 0:02:00]}  Qd3 {[%clk 0:00:19]} 41. Qd4+ {[%clk 0:02:00]}  Qxd4 {[%clk 0:00:20]} 42. Bxd4 {[%clk 0:02:01]}  Ke8 {[%clk 0:00:20]} 43. Kg4 {[%clk 0:02:01]}  Kf7 {[%clk 0:00:21]} 44. Kh5 {[%clk 0:02:01]}  g4 {[%clk 0:00:20]} 45. g3 {[%clk 0:01:59]}  Bd8 {[%clk 0:00:20]} 46. Be3 {[%clk 0:01:58]}  Bc7 {[%clk 0:00:19]} 47. Bf4 {[%clk 0:01:58]}  Bd8 {[%clk 0:00:19]} 48. Bg5 {[%clk 0:01:57]}  Bc7 {[%clk 0:00:15]} 49. Bf6 {[%clk 0:01:57]}  Bb8 {[%clk 0:00:15]} 50. Kxg4 {[%clk 0:01:55]}  Kg6 {[%clk 0:00:15]} 51. Kh4 {[%clk 0:01:55]}  Bc7 {[%clk 0:00:15]} 52. Kg4 {[%clk 0:01:53]}  Bb8 {[%clk 0:00:15]} 53. Kf4 {[%clk 0:01:53]}  Bc7 {[%clk 0:00:14]} 54. Ke4 {[%clk 0:01:51]}  Kf7 {[%clk 0:00:13]} 55. g4 {[%clk 0:01:44]}  Kg6 {[%clk 0:00:14]} 56. Be7 {[%clk 0:01:44]}  Kf7 {[%clk 0:00:13]} 57. Bf6 {[%clk 0:01:43]}  Kg6 {[%clk 0:00:12]} 58. Kf4 {[%clk 0:01:43]}  Kh6 {[%clk 0:00:08]} 59. Kf3 {[%clk 0:01:22]}  Kg6 {[%clk 0:00:08]} 60. Ke4 {[%clk 0:01:20]}  Kh6 {[%clk 0:00:07]} 61. g5+ {[%clk 0:01:20]}  Kg6 {[%clk 0:00:07]} 62. Kf4 {[%clk 0:01:20]}  Kh5 {[%clk 0:00:06]} 63. Kg3 {[%clk 0:01:20]}  Kg6 {[%clk 0:00:03]} 64. Kg4 {[%clk 0:01:20]}  Bb8 {[%clk 0:00:03]} 65. Kf4 {[%clk 0:01:18]}  Bc7 {[%clk 0:00:04]} 66. Be7 {[%clk 0:01:18]}  Kf7 {[%clk 0:00:04]} 67. Bf6 {[%clk 0:01:12]}  Kg6 {[%clk 0:00:04]} 68. Ke4 {[%clk 0:01:10]}  Kh5 {[%clk 0:00:04]} 69. Be7 {[%clk 0:01:07]}  Kg6 {[%clk 0:00:04]} 70. Kf4 {[%clk 0:01:06]}  Kf7 {[%clk 0:00:03]} 71. Bf6 {[%clk 0:01:00]}  Kg6 {[%clk 0:00:03]} 1/2-1/2


[Site "https://www.chess.com"]